[Event "Titled Tuesday Blitz December 06 Early 2022"]
[White "Sadilek, Peter"]
[Black "Jaskolka, Tomasz"]
[WhiteFideId "1616439"]
[BlackFideId "1170791"]
[WhiteElo "2227"]
[BlackElo "2126"]
[Result "1/2-1/2"]
[Round "11"]
[TimeControl "180+1"]
[Date "2022.12.07"]
[WhiteClock "0:00:04"]
[BlackClock "0:00:12"]

1. Nf3 {[%clk 0:02:59]}  Nf6 {[%clk 0:02:59]} 2. c4 {[%clk 0:03:00]}  d5 {[%clk 0:02:58]} 3. cxd5 {[%clk 0:02:49]}  Nxd5 {[%clk 0:02:58]} 4. d4 {[%clk 0:02:37]}  Bg4 {[%clk 0:02:53]} 5. Ne5 {[%clk 0:02:35]}  Bf5 {[%clk 0:02:49]} 6. Nc3 {[%clk 0:02:12]}  Nxc3 {[%clk 0:02:47]} 7. bxc3 {[%clk 0:02:13]}  e6 {[%clk 0:02:45]} 8. Qb3 {[%clk 0:02:07]}  Qc8 {[%clk 0:02:44]} 9. f3 {[%clk 0:01:59]}  Bd6 {[%clk 0:02:42]} 10. e4 {[%clk 0:01:59]}  Bxe5 {[%clk 0:02:39]} 11. exf5 {[%clk 0:01:59]}  Bd6 {[%clk 0:02:39]} 12. fxe6 {[%clk 0:01:59]}  Qxe6+ {[%clk 0:02:38]} 13. Qxe6+ {[%clk 0:02:00]}  fxe6 {[%clk 0:02:39]} 14. Rb1 {[%clk 0:01:56]}  b6 {[%clk 0:02:34]} 15. Bc4 {[%clk 0:01:43]}  e5 {[%clk 0:02:14]} 16. O-O {[%clk 0:01:29]}  exd4 {[%clk 0:02:12]} 17. Re1+ {[%clk 0:01:29]}  Kd7 {[%clk 0:02:07]} 18. cxd4 {[%clk 0:01:30]}  c6 {[%clk 0:01:54]} 19. d5 {[%clk 0:01:19]}  Bc5+ {[%clk 0:01:34]} 20. Kf1 {[%clk 0:01:08]}  Re8 {[%clk 0:01:16]} 21. Rxe8 {[%clk 0:00:56]}  Kxe8 {[%clk 0:01:16]} 22. dxc6 {[%clk 0:00:55]}  Nxc6 {[%clk 0:01:16]} 23. Bf4 {[%clk 0:00:39]}  Kf8 {[%clk 0:01:14]} 24. Rd1 {[%clk 0:00:32]}  Rd8 {[%clk 0:01:12]} 25. Rxd8+ {[%clk 0:00:30]}  Nxd8 {[%clk 0:01:13]} 26. Ke2 {[%clk 0:00:29]}  Nc6 {[%clk 0:01:10]} 27. Bd5 {[%clk 0:00:25]}  Nb4 {[%clk 0:01:03]} 28. Bb3 {[%clk 0:00:22]}  Ke7 {[%clk 0:00:59]} 29. Be5 {[%clk 0:00:20]}  g6 {[%clk 0:00:56]} 30. g4 {[%clk 0:00:19]}  Nc6 {[%clk 0:00:55]} 31. Bb2 {[%clk 0:00:15]}  Bd4 {[%clk 0:00:51]} 32. Ba3+ {[%clk 0:00:15]}  Kf6 {[%clk 0:00:51]} 33. h4 {[%clk 0:00:14]}  h6 {[%clk 0:00:51]} 34. Bc1 {[%clk 0:00:12]}  g5 {[%clk 0:00:49]} 35. hxg5+ {[%clk 0:00:13]}  hxg5 {[%clk 0:00:50]} 36. Kd3 {[%clk 0:00:13]}  Be5 {[%clk 0:00:43]} 37. Bd2 {[%clk 0:00:10]}  a5 {[%clk 0:00:34]} 38. Ke4 {[%clk 0:00:10]}  Bc7 {[%clk 0:00:24]} 39. a3 {[%clk 0:00:07]}  Be5 {[%clk 0:00:20]} 40. Bd5 {[%clk 0:00:06]}  Nd4 {[%clk 0:00:15]} 41. Bxg5+ {[%clk 0:00:06]}  Kxg5 {[%clk 0:00:15]} 42. Kxe5 {[%clk 0:00:07]}  Nc2 {[%clk 0:00:15]} 43. a4 {[%clk 0:00:06]}  Ne3 {[%clk 0:00:15]} 44. Be6 {[%clk 0:00:05]}  Ng2 {[%clk 0:00:13]} 45. f4+ {[%clk 0:00:06]}  Nxf4 {[%clk 0:00:13]} 46. Kd6 {[%clk 0:00:05]}  Nd3 {[%clk 0:00:09]} 47. Kc6 {[%clk 0:00:03]}  Nc5 {[%clk 0:00:10]} 48. Bc8 {[%clk 0:00:02]}  Nxa4 {[%clk 0:00:10]} 49. Kb5 {[%clk 0:00:03]}  Nc3+ {[%clk 0:00:09]} 50. Kxb6 {[%clk 0:00:03]}  a4 {[%clk 0:00:10]} 51. Be6 {[%clk 0:00:03]}  Kf4 {[%clk 0:00:10]} 52. Kc5 {[%clk 0:00:02]}  Ke5 {[%clk 0:00:10]} 53. Kb4 {[%clk 0:00:02]}  Kxe6 {[%clk 0:00:09]} 54. Kxc3 {[%clk 0:00:02]}  Kf6 {[%clk 0:00:10]} 55. Kb2 {[%clk 0:00:03]}  Kg5 {[%clk 0:00:11]} 56. Ka3 {[%clk 0:00:03]}  Kxg4 {[%clk 0:00:12]} 57. Kxa4 {[%clk 0:00:04]} 1/2-1/2


[Site "https://www.chess.com"]

[Event "Titled Tuesday Blitz December 06 Early 2022"]
[White "Seletsky, Grigory"]
[Black "Ray, Sarathi"]
[WhiteFideId "14112191"]
[BlackFideId "2032490"]
[WhiteElo "2492"]
[BlackElo "2029"]
[Result "1-0"]
[Round "11"]
[TimeControl "180+1"]
[Date "2022.12.07"]
[WhiteClock "0:00:48"]
[BlackClock "0:00:35"]

1. d4 {[%clk 0:01:32]}  Nf6 {[%clk 0:02:56]} 2. Nc3 {[%clk 0:01:27]}  d5 {[%clk 0:02:53]} 3. Bg5 {[%clk 0:01:25]}  g6 {[%clk 0:02:35]} 4. Qd2 {[%clk 0:01:22]}  Bg7 {[%clk 0:02:29]} 5. h4 {[%clk 0:01:23]}  c6 {[%clk 0:02:21]} 6. O-O-O {[%clk 0:01:21]}  Qa5 {[%clk 0:02:16]} 7. Kb1 {[%clk 0:01:21]}  Nbd7 {[%clk 0:02:06]} 8. f3 {[%clk 0:01:21]}  Nb6 {[%clk 0:01:56]} 9. e4 {[%clk 0:01:19]}  Nc4 {[%clk 0:01:44]} 10. Bxc4 {[%clk 0:01:18]}  dxc4 {[%clk 0:01:44]} 11. g4 {[%clk 0:01:15]}  b5 {[%clk 0:01:43]} 12. Nce2 {[%clk 0:01:15]}  Qxd2 {[%clk 0:01:40]} 13. Rxd2 {[%clk 0:01:14]}  Nd7 {[%clk 0:01:30]} 14. Be3 {[%clk 0:01:13]}  e5 {[%clk 0:01:26]} 15. c3 {[%clk 0:01:11]}  a5 {[%clk 0:01:25]} 16. h5 {[%clk 0:01:10]}  Ke7 {[%clk 0:01:17]} 17. h6 {[%clk 0:01:06]}  Bf8 {[%clk 0:01:10]} 18. g5 {[%clk 0:01:05]}  Ke6 {[%clk 0:01:08]} 19. f4 {[%clk 0:01:05]}  exf4 {[%clk 0:00:57]} 20. Nxf4+ {[%clk 0:01:06]}  Kd6 {[%clk 0:00:55]} 21. e5+ {[%clk 0:01:06]}  Kc7 {[%clk 0:00:53]} 22. Nf3 {[%clk 0:01:06]}  Bb7 {[%clk 0:00:52]} 23. Rf1 {[%clk 0:01:03]}  Be7 {[%clk 0:00:49]} 24. d5 {[%clk 0:00:57]}  cxd5 {[%clk 0:00:48]} 25. Nxd5+ {[%clk 0:00:58]}  Bxd5 {[%clk 0:00:48]} 26. Rxd5 {[%clk 0:00:58]}  Rab8 {[%clk 0:00:43]} 27. Nd4 {[%clk 0:00:52]}  Bc5 {[%clk 0:00:39]} 28. Rxf7 {[%clk 0:00:50]}  Bxd4 {[%clk 0:00:35]} 29. Rfxd7+ {[%clk 0:00:48]} 1-0


[Site "https://www.chess.com"]

[Event "Titled Tuesday Blitz December 06 Early 2022"]
[White "Shapiro, Daniel"]
[Black "Dzhaparov, Medet"]
[WhiteFideId "2001780"]
[BlackFideId "13803689"]
[WhiteElo "2296"]
[BlackElo "1702"]
[Result "1-0"]
[Round "11"]
[TimeControl "180+1"]
[Date "2022.12.07"]
[WhiteClock "0:00:24"]
[BlackClock "0:00:14"]

1. d4 {[%clk 0:03:00]}  Nf6 {[%clk 0:02:59]} 2. c4 {[%clk 0:03:00]}  g6 {[%clk 0:02:59]} 3. Nc3 {[%clk 0:03:00]}  d5 {[%clk 0:02:58]} 4. Nf3 {[%clk 0:03:00]}  Bg7 {[%clk 0:02:58]} 5. Qb3 {[%clk 0:03:00]}  c6 {[%clk 0:02:54]} 6. Bg5 {[%clk 0:02:58]}  e6 {[%clk 0:02:39]} 7. e3 {[%clk 0:02:53]}  O-O {[%clk 0:02:38]} 8. h3 {[%clk 0:02:48]}  Nbd7 {[%clk 0:02:37]} 9. Rd1 {[%clk 0:02:44]}  h6 {[%clk 0:02:32]} 10. Bh4 {[%clk 0:02:43]}  Qa5 {[%clk 0:02:23]} 11. Be2 {[%clk 0:02:30]}  b6 {[%clk 0:02:04]} 12. O-O {[%clk 0:02:18]}  Ba6 {[%clk 0:01:54]} 13. Nd2 {[%clk 0:02:04]}  dxc4 {[%clk 0:01:51]} 14. Nxc4 {[%clk 0:02:01]}  Bxc4 {[%clk 0:01:49]} 15. Bxc4 {[%clk 0:01:59]}  Qh5 {[%clk 0:01:43]} 16. Bg3 {[%clk 0:01:54]}  Nd5 {[%clk 0:01:41]} 17. Be2 {[%clk 0:01:50]}  Qg5 {[%clk 0:01:37]} 18. Bf3 {[%clk 0:01:28]}  Rac8 {[%clk 0:01:29]} 19. Ne4 {[%clk 0:01:23]}  Qd8 {[%clk 0:01:24]} 20. Nd6 {[%clk 0:01:17]}  Ra8 {[%clk 0:01:22]} 21. e4 {[%clk 0:01:11]}  Nc7 {[%clk 0:01:18]} 22. Rfe1 {[%clk 0:00:59]}  Qe7 {[%clk 0:01:10]} 23. Qc2 {[%clk 0:00:51]}  Nb5 {[%clk 0:00:49]} 24. Nxb5 {[%clk 0:00:37]}  cxb5 {[%clk 0:00:50]} 25. Qc6 {[%clk 0:00:33]}  a6 {[%clk 0:00:44]} 26. Bd6 {[%clk 0:00:32]}  Rfc8 {[%clk 0:00:23]} 27. Bxe7 {[%clk 0:00:32]}  Rxc6 {[%clk 0:00:22]} 28. e5 {[%clk 0:00:32]}  Rac8 {[%clk 0:00:21]} 29. Bxc6 {[%clk 0:00:32]}  Rxc6 {[%clk 0:00:22]} 30. Rc1 {[%clk 0:00:33]}  Rc4 {[%clk 0:00:20]} 31. Red1 {[%clk 0:00:27]}  h5 {[%clk 0:00:17]} 32. b3 {[%clk 0:00:27]}  Rxc1 {[%clk 0:00:16]} 33. Rxc1 {[%clk 0:00:28]}  Bh6 {[%clk 0:00:15]} 34. Rc7 {[%clk 0:00:27]}  Nf8 {[%clk 0:00:14]} 35. Rc6 {[%clk 0:00:26]}  a5 {[%clk 0:00:14]} 36. Rxb6 {[%clk 0:00:26]}  a4 {[%clk 0:00:14]} 37. Rxb5 {[%clk 0:00:26]}  axb3 {[%clk 0:00:14]} 38. axb3 {[%clk 0:00:24]} 1-0


[Site "https://www.chess.com"]

[Event "Titled Tuesday Blitz December 06 Early 2022"]
[White "Suduvasachmatai"]
[Black "Kyaw Lay Htaik"]
[BlackFideId "13002007"]
[WhiteElo "2076"]
[BlackElo "2261"]
[Result "0-1"]
[Round "11"]
[TimeControl "180+1"]
[Date "2022.12.07"]
[WhiteClock "0:01:53"]
[BlackClock "0:01:22"]

1. e4 {[%clk 0:03:00]}  c5 {[%clk 0:02:59]} 2. c3 {[%clk 0:03:00]}  Nf6 {[%clk 0:02:58]} 3. e5 {[%clk 0:03:00]}  Nd5 {[%clk 0:02:58]} 4. d4 {[%clk 0:03:01]}  cxd4 {[%clk 0:02:59]} 5. cxd4 {[%clk 0:03:01]}  Nc6 {[%clk 0:02:59]} 6. Nf3 {[%clk 0:03:00]}  e6 {[%clk 0:02:58]} 7. Bc4 {[%clk 0:03:00]}  d6 {[%clk 0:02:58]} 8. O-O {[%clk 0:02:58]}  Be7 {[%clk 0:02:58]} 9. Bxd5 {[%clk 0:02:52]}  exd5 {[%clk 0:02:57]} 10. Nc3 {[%clk 0:02:53]}  Be6 {[%clk 0:02:53]} 11. Re1 {[%clk 0:02:50]}  O-O {[%clk 0:02:53]} 12. Bf4 {[%clk 0:02:48]}  a6 {[%clk 0:02:45]} 13. Qb3 {[%clk 0:02:46]}  Na5 {[%clk 0:02:36]} 14. Qc2 {[%clk 0:02:38]}  Rc8 {[%clk 0:02:34]} 15. Qd3 {[%clk 0:02:36]}  Nc4 {[%clk 0:02:31]} 16. Re2 {[%clk 0:02:28]}  Qa5 {[%clk 0:02:20]} 17. Bg5 {[%clk 0:02:22]}  Qd8 {[%clk 0:02:01]} 18. Bxe7 {[%clk 0:02:10]}  Qxe7 {[%clk 0:02:02]} 19. b3 {[%clk 0:02:09]}  Na3 {[%clk 0:01:51]} 20. exd6 {[%clk 0:02:05]}  Qxd6 {[%clk 0:01:51]} 21. Ng5 {[%clk 0:02:04]}  g6 {[%clk 0:01:41]} 22. Rae1 {[%clk 0:02:00]}  Bf5 {[%clk 0:01:37]} 23. Qe3 {[%clk 0:01:59]}  Nc2 {[%clk 0:01:22]} 24. Rd2 {[%clk 0:01:53]}  Nxe3 {[%clk 0:01:22]} 0-1


[Site "https://www.chess.com"]

[Event "Titled Tuesday Blitz December 06 Early 2022"]
[White "Topalov, Aleksandar"]
[Black "Herman, Daniel"]
[WhiteFideId "925659"]
[BlackFideId "30935008"]
[WhiteElo "2151"]
[BlackElo "1897"]
[Result "1-0"]
[Round "11"]
[TimeControl "180+1"]
[Date "2022.12.07"]
[WhiteClock "0:01:15"]
[BlackClock "0:00:41"]

1. b3 {[%clk 0:03:00]}  d5 {[%clk 0:02:58]} 2. Bb2 {[%clk 0:02:59]}  Bg4 {[%clk 0:02:59]} 3. f3 {[%clk 0:02:58]}  Bh5 {[%clk 0:02:56]} 4. e4 {[%clk 0:02:58]}  dxe4 {[%clk 0:02:54]} 5. Qe2 {[%clk 0:02:58]}  Nc6 {[%clk 0:02:47]} 6. Qb5 {[%clk 0:02:58]}  Bg6 {[%clk 0:02:38]} 7. Qxb7 {[%clk 0:02:58]}  Rb8 {[%clk 0:02:13]} 8. Qxc6+ {[%clk 0:02:56]}  Qd7 {[%clk 0:02:14]} 9. Qxd7+ {[%clk 0:02:49]}  Kxd7 {[%clk 0:02:15]} 10. Nc3 {[%clk 0:02:38]}  Nf6 {[%clk 0:02:14]} 11. Bc4 {[%clk 0:02:26]}  e6 {[%clk 0:02:13]} 12. O-O-O {[%clk 0:02:23]}  Bb4 {[%clk 0:01:53]} 13. Nxe4 {[%clk 0:02:21]}  Nxe4 {[%clk 0:01:49]} 14. fxe4 {[%clk 0:02:21]}  Bxe4 {[%clk 0:01:50]} 15. Nf3 {[%clk 0:02:21]}  f6 {[%clk 0:01:42]} 16. Rhe1 {[%clk 0:02:21]}  Bd5 {[%clk 0:01:38]} 17. Bxd5 {[%clk 0:02:15]}  exd5 {[%clk 0:01:39]} 18. Nd4 {[%clk 0:02:12]}  g6 {[%clk 0:01:32]} 19. Ne2 {[%clk 0:02:04]}  Rhf8 {[%clk 0:01:28]} 20. Nf4 {[%clk 0:02:04]}  c6 {[%clk 0:01:23]} 21. a3 {[%clk 0:02:00]}  Bd6 {[%clk 0:01:22]} 22. g3 {[%clk 0:01:56]}  f5 {[%clk 0:01:15]} 23. Re2 {[%clk 0:01:52]}  Bxf4 {[%clk 0:01:09]} 24. gxf4 {[%clk 0:01:51]}  Rbe8 {[%clk 0:01:09]} 25. Rde1 {[%clk 0:01:51]}  Re4 {[%clk 0:01:09]} 26. Be5 {[%clk 0:01:45]}  Re8 {[%clk 0:01:08]} 27. d3 {[%clk 0:01:44]}  Rxe2 {[%clk 0:01:08]} 28. Rxe2 {[%clk 0:01:44]}  c5 {[%clk 0:01:05]} 29. Kd2 {[%clk 0:01:42]}  Kc6 {[%clk 0:01:05]} 30. h4 {[%clk 0:01:41]}  Re6 {[%clk 0:01:03]} 31. Bb8 {[%clk 0:01:37]}  Rxe2+ {[%clk 0:00:50]} 32. Kxe2 {[%clk 0:01:37]}  a6 {[%clk 0:00:51]} 33. Ke3 {[%clk 0:01:30]}  Kb7 {[%clk 0:00:48]} 34. Be5 {[%clk 0:01:30]}  Kc6 {[%clk 0:00:49]} 35. b4 {[%clk 0:01:23]}  Kb5 {[%clk 0:00:41]} 36. bxc5 {[%clk 0:01:22]}  Kxc5 {[%clk 0:00:42]} 37. Bd4+ {[%clk 0:01:19]}  Kb5 {[%clk 0:00:42]} 38. Ba7 {[%clk 0:01:18]}  Ka4 {[%clk 0:00:41]} 39. Bc5 {[%clk 0:01:15]}  Kb5 {[%clk 0:00:42]} 40. Kd4 {[%clk 0:01:15]}  Kc6 {[%clk 0:00:41]} 41. Bb4 {[%clk 0:01:15]} 1-0


[Site "https://www.chess.com"]

[Event "Titled Tuesday Blitz December 06 Early 2022"]
[White "Tsatsalashvili, Keti"]
[Black "Clawitter, Craig"]
[WhiteFideId "13603434"]
[BlackFideId "2023105"]
[WhiteElo "2220"]
[BlackElo "2198"]
[Result "1-0"]
[Round "11"]
[TimeControl "180+1"]
[Date "2022.12.07"]
[WhiteClock "0:00:15"]
[BlackClock "0:00:02"]

1. d4 {[%clk 0:03:00]}  e6 {[%clk 0:02:58]} 2. c4 {[%clk 0:03:00]}  Nf6 {[%clk 0:02:56]} 3. Nc3 {[%clk 0:02:59]}  d5 {[%clk 0:02:55]} 4. Nf3 {[%clk 0:02:58]}  c6 {[%clk 0:02:52]} 5. e3 {[%clk 0:02:53]}  Nbd7 {[%clk 0:02:52]} 6. cxd5 {[%clk 0:02:08]}  exd5 {[%clk 0:02:52]} 7. Bd3 {[%clk 0:01:59]}  Be7 {[%clk 0:02:44]} 8. O-O {[%clk 0:01:57]}  O-O {[%clk 0:02:45]} 9. b3 {[%clk 0:01:55]}  Re8 {[%clk 0:02:41]} 10. Bb2 {[%clk 0:01:54]}  Nf8 {[%clk 0:02:42]} 11. Ne5 {[%clk 0:01:51]}  N6d7 {[%clk 0:02:24]} 12. Ne2 {[%clk 0:01:32]}  Nxe5 {[%clk 0:02:09]} 13. dxe5 {[%clk 0:01:33]}  Ne6 {[%clk 0:01:43]} 14. f4 {[%clk 0:01:27]}  Nc5 {[%clk 0:01:37]} 15. Bc2 {[%clk 0:01:18]}  a5 {[%clk 0:01:37]} 16. Nd4 {[%clk 0:01:11]}  Bf8 {[%clk 0:01:26]} 17. Qh5 {[%clk 0:01:04]}  g6 {[%clk 0:01:22]} 18. Qf3 {[%clk 0:00:55]}  Qh4 {[%clk 0:01:04]} 19. h3 {[%clk 0:00:42]}  a4 {[%clk 0:00:43]} 20. Bc3 {[%clk 0:00:31]}  Ne6 {[%clk 0:00:27]} 21. Be1 {[%clk 0:00:28]}  Nxd4 {[%clk 0:00:13]} 22. exd4 {[%clk 0:00:28]}  Qd8 {[%clk 0:00:11]} 23. Bc3 {[%clk 0:00:21]}  axb3 {[%clk 0:00:11]} 24. axb3 {[%clk 0:00:21]}  Bf5 {[%clk 0:00:08]} 25. Bxf5 {[%clk 0:00:20]}  gxf5 {[%clk 0:00:09]} 26. Qg3+ {[%clk 0:00:19]}  Bg7 {[%clk 0:00:06]} 27. Qf3 {[%clk 0:00:18]}  Qb6 {[%clk 0:00:05]} 28. Bb2 {[%clk 0:00:16]}  Rxa1 {[%clk 0:00:04]} 29. Rxa1 {[%clk 0:00:17]}  Bf8 {[%clk 0:00:03]} 30. Qd3 {[%clk 0:00:17]}  Bb4 {[%clk 0:00:03]} 31. Qxf5 {[%clk 0:00:16]}  c5 {[%clk 0:00:01]} 32. Qg5+ {[%clk 0:00:16]}  Kf8 {[%clk 0:00:01]} 33. dxc5 {[%clk 0:00:15]}  Bxc5+ {[%clk 0:00:01]} 34. Kh1 {[%clk 0:00:16]}  Qxb3 {[%clk 0:00:01]} 35. Qh6+ {[%clk 0:00:15]}  Ke7 {[%clk 0:00:01]} 36. Qf6+ {[%clk 0:00:15]}  Kf8 {[%clk 0:00:02]} 37. e6 {[%clk 0:00:15]} 1-0


[Site "https://www.chess.com"]

[Event "Titled Tuesday Blitz December 06 Early 2022"]
[White "Turzo, Attila"]
[Black "Csonka, Balazs"]
[WhiteFideId "704954"]
[BlackFideId "742910"]
[WhiteElo "2504"]
[BlackElo "2404"]
[Result "0-1"]
[Round "11"]
[TimeControl "180+1"]
[Date "2022.12.06"]
[WhiteClock "0:00:33"]
[BlackClock "0:00:37"]

1. d4 {[%clk 0:03:00]}  Nf6 {[%clk 0:02:56]} 2. c4 {[%clk 0:03:00]}  e6 {[%clk 0:02:52]} 3. Nf3 {[%clk 0:03:01]}  d5 {[%clk 0:02:52]} 4. Nc3 {[%clk 0:03:00]}  Ne4 {[%clk 0:02:47]} 5. Qc2 {[%clk 0:02:54]}  Nxc3 {[%clk 0:02:47]} 6. Qxc3 {[%clk 0:02:52]}  a5 {[%clk 0:02:47]} 7. Qc2 {[%clk 0:02:47]}  c5 {[%clk 0:02:30]} 8. e3 {[%clk 0:02:36]}  Nc6 {[%clk 0:02:17]} 9. cxd5 {[%clk 0:02:20]}  exd5 {[%clk 0:02:13]} 10. dxc5 {[%clk 0:02:16]}  Nb4 {[%clk 0:01:40]} 11. Qc3 {[%clk 0:01:59]}  Be7 {[%clk 0:01:36]} 12. Bb5+ {[%clk 0:01:40]}  Bd7 {[%clk 0:01:35]} 13. Bxd7+ {[%clk 0:01:39]}  Qxd7 {[%clk 0:01:36]} 14. Qxg7 {[%clk 0:01:31]}  O-O-O {[%clk 0:01:34]} 15. O-O {[%clk 0:01:21]}  Rhg8 {[%clk 0:01:04]} 16. Qh6 {[%clk 0:01:16]}  Rxg2+ {[%clk 0:01:03]} 17. Kh1 {[%clk 0:01:08]}  Rdg8 {[%clk 0:00:56]} 18. Bd2 {[%clk 0:00:41]}  Qg4 {[%clk 0:00:42]} 19. Qf4 {[%clk 0:00:38]}  Rxh2+ {[%clk 0:00:38]} 20. Qxh2 {[%clk 0:00:33]}  Qxf3+ {[%clk 0:00:37]} 0-1


[Site "https://www.chess.com"]

[Event "Titled Tuesday Blitz December 06 Early 2022"]
[White "Yuan, Qingyu"]
[Black "HSH1987"]
[WhiteFideId "8609772"]
[WhiteElo "2359"]
[BlackElo "2538"]
[Result "1-0"]
[Round "11"]
[TimeControl "180+1"]
[Date "2022.12.07"]
[WhiteClock "0:00:06"]
[BlackClock "0:00:04"]

1. e4 {[%clk 0:03:00]}  c6 {[%clk 0:02:59]} 2. d4 {[%clk 0:03:01]}  d5 {[%clk 0:03:00]} 3. e5 {[%clk 0:03:01]}  Bf5 {[%clk 0:03:00]} 4. h4 {[%clk 0:03:01]}  h6 {[%clk 0:02:59]} 5. g4 {[%clk 0:03:00]}  Be4 {[%clk 0:02:59]} 6. f3 {[%clk 0:03:00]}  Bh7 {[%clk 0:02:59]} 7. Bd3 {[%clk 0:03:01]}  Bxd3 {[%clk 0:02:55]} 8. Qxd3 {[%clk 0:03:02]}  e6 {[%clk 0:02:56]} 9. h5 {[%clk 0:03:02]}  Qb6 {[%clk 0:02:54]} 10. f4 {[%clk 0:02:58]}  c5 {[%clk 0:02:54]} 11. c3 {[%clk 0:02:59]}  Nc6 {[%clk 0:02:54]} 12. Nf3 {[%clk 0:02:59]}  cxd4 {[%clk 0:02:54]} 13. cxd4 {[%clk 0:02:59]}  Nb4 {[%clk 0:02:50]} 14. Qe2 {[%clk 0:02:51]}  Qa6 {[%clk 0:02:43]} 15. Nc3 {[%clk 0:02:49]}  Qxe2+ {[%clk 0:02:06]} 16. Kxe2 {[%clk 0:02:33]}  Rc8 {[%clk 0:02:04]} 17. Bd2 {[%clk 0:02:22]}  a6 {[%clk 0:01:57]} 18. Rhc1 {[%clk 0:02:17]}  Ne7 {[%clk 0:01:57]} 19. Na4 {[%clk 0:01:57]}  Nbc6 {[%clk 0:01:30]} 20. Rc2 {[%clk 0:01:49]}  Rc7 {[%clk 0:01:24]} 21. Rac1 {[%clk 0:01:47]}  Nc8 {[%clk 0:01:14]} 22. Kd3 {[%clk 0:01:39]}  Be7 {[%clk 0:01:09]} 23. f5 {[%clk 0:01:33]}  O-O {[%clk 0:00:57]} 24. a3 {[%clk 0:00:53]}  N8a7 {[%clk 0:00:56]} 25. Nb6 {[%clk 0:00:48]}  Nc8 {[%clk 0:00:46]} 26. Na4 {[%clk 0:00:44]}  N8a7 {[%clk 0:00:45]} 27. Bf4 {[%clk 0:00:34]}  Rcc8 {[%clk 0:00:31]} 28. Nb6 {[%clk 0:00:32]}  Rcd8 {[%clk 0:00:30]} 29. Ke3 {[%clk 0:00:16]}  Kh7 {[%clk 0:00:29]} 30. Rg2 {[%clk 0:00:14]}  Nc8 {[%clk 0:00:25]} 31. Na4 {[%clk 0:00:13]}  N8a7 {[%clk 0:00:25]} 32. g5 {[%clk 0:00:12]}  exf5 {[%clk 0:00:25]} 33. gxh6 {[%clk 0:00:11]}  gxh6 {[%clk 0:00:25]} 34. Rcg1 {[%clk 0:00:09]}  Rg8 {[%clk 0:00:25]} 35. Nc3 {[%clk 0:00:09]}  Rxg2 {[%clk 0:00:24]} 36. Rxg2 {[%clk 0:00:09]}  Nb5 {[%clk 0:00:23]} 37. Nxb5 {[%clk 0:00:07]}  axb5 {[%clk 0:00:24]} 38. Ne1 {[%clk 0:00:07]}  b4 {[%clk 0:00:23]} 39. a4 {[%clk 0:00:07]}  Na5 {[%clk 0:00:22]} 40. Nd3 {[%clk 0:00:06]}  Nc4+ {[%clk 0:00:22]} 41. Kf3 {[%clk 0:00:07]}  b3 {[%clk 0:00:20]} 42. Bc1 {[%clk 0:00:07]}  Rg8 {[%clk 0:00:20]} 43. Rxg8 {[%clk 0:00:06]}  Kxg8 {[%clk 0:00:20]} 44. Nf4 {[%clk 0:00:07]}  Bg5 {[%clk 0:00:20]} 45. Nd3 {[%clk 0:00:05]}  Bxc1 {[%clk 0:00:19]} 46. Nxc1 {[%clk 0:00:06]}  Nxb2 {[%clk 0:00:20]} 47. a5 {[%clk 0:00:05]}  Nc4 {[%clk 0:00:14]} 48. Nxb3 {[%clk 0:00:05]}  f6 {[%clk 0:00:13]} 49. e6 {[%clk 0:00:04]}  Kf8 {[%clk 0:00:14]} 50. Kf4 {[%clk 0:00:04]}  Ke7 {[%clk 0:00:14]} 51. Kxf5 {[%clk 0:00:03]}  Nd6+ {[%clk 0:00:13]} 52. Kg6 {[%clk 0:00:03]}  Kxe6 {[%clk 0:00:13]} 53. Kxh6 {[%clk 0:00:04]}  Nf5+ {[%clk 0:00:12]} 54. Kg6 {[%clk 0:00:04]}  Nh4+ {[%clk 0:00:12]} 55. Kg7 {[%clk 0:00:04]}  Kd6 {[%clk 0:00:09]} 56. Kxf6 {[%clk 0:00:03]}  Ng2 {[%clk 0:00:03]} 57. h6 {[%clk 0:00:04]}  Ne3 {[%clk 0:00:04]} 58. h7 {[%clk 0:00:04]}  Ng4+ {[%clk 0:00:03]} 59. Kg5 {[%clk 0:00:05]}  Ne3 {[%clk 0:00:03]} 60. h8=Q {[%clk 0:00:05]}  Nc4 {[%clk 0:00:04]} 61. Qf6+ {[%clk 0:00:05]}  Kc7 {[%clk 0:00:04]} 62. Nc5 {[%clk 0:00:06]}  Kb8 {[%clk 0:00:05]} 63. Qe7 {[%clk 0:00:06]}  Ka8 {[%clk 0:00:04]} 64. Qxb7# {[%clk 0:00:06]} 1-0


[Site "https://www.chess.com"]

[Event "Titled Tuesday Blitz December 06 Early 2022"]
[White "Zaksaite, Salomeja"]
[Black "Aldokhin, Ivan"]
[WhiteFideId "12801496"]
[BlackFideId "24115720"]
[WhiteElo "2079"]
[BlackElo "2313"]
[Result "0-1"]
[Round "11"]
[TimeControl "180+1"]
[Date "2022.12.07"]
[WhiteClock "0:00:04"]
[BlackClock "0:00:10"]

1. e4 {[%clk 0:02:58]}  c5 {[%clk 0:02:54]} 2. Nf3 {[%clk 0:02:57]}  e6 {[%clk 0:02:54]} 3. g3 {[%clk 0:02:56]}  Nf6 {[%clk 0:02:52]} 4. Qe2 {[%clk 0:02:54]}  Nc6 {[%clk 0:02:52]} 5. c3 {[%clk 0:02:54]}  Be7 {[%clk 0:02:52]} 6. Bg2 {[%clk 0:02:54]}  O-O {[%clk 0:02:52]} 7. O-O {[%clk 0:02:54]}  d5 {[%clk 0:02:51]} 8. e5 {[%clk 0:02:52]}  Nd7 {[%clk 0:02:48]} 9. d4 {[%clk 0:02:52]}  a5 {[%clk 0:02:49]} 10. h4 {[%clk 0:02:49]}  b5 {[%clk 0:02:46]} 11. Bg5 {[%clk 0:02:49]}  b4 {[%clk 0:02:40]} 12. Rd1 {[%clk 0:02:47]}  bxc3 {[%clk 0:02:35]} 13. bxc3 {[%clk 0:02:46]}  h6 {[%clk 0:02:34]} 14. Be3 {[%clk 0:02:37]}  Re8 {[%clk 0:02:31]} 15. Nbd2 {[%clk 0:02:37]}  Ba6 {[%clk 0:02:30]} 16. Qe1 {[%clk 0:02:32]}  Nb6 {[%clk 0:02:28]} 17. Nf1 {[%clk 0:02:09]}  cxd4 {[%clk 0:02:16]} 18. cxd4 {[%clk 0:02:09]}  Nc4 {[%clk 0:02:10]} 19. N1h2 {[%clk 0:02:07]}  Bb4 {[%clk 0:02:05]} 20. Nd2 {[%clk 0:01:51]}  Bxd2 {[%clk 0:01:21]} 21. Bxd2 {[%clk 0:01:50]}  Nxd4 {[%clk 0:01:22]} 22. Bxa5 {[%clk 0:01:31]}  Qxa5 {[%clk 0:01:14]} 23. Qxa5 {[%clk 0:01:26]}  Nxa5 {[%clk 0:01:14]} 24. Rxd4 {[%clk 0:01:27]}  Nc6 {[%clk 0:01:15]} 25. Rdd1 {[%clk 0:00:56]}  Nxe5 {[%clk 0:01:14]} 26. f4 {[%clk 0:00:54]}  Nc4 {[%clk 0:01:12]} 27. a4 {[%clk 0:00:50]}  Ne3 {[%clk 0:01:04]} 28. Rd2 {[%clk 0:00:50]}  Bb7 {[%clk 0:00:56]} 29. Bf3 {[%clk 0:00:45]}  Ra7 {[%clk 0:00:53]} 30. Kf2 {[%clk 0:00:11]}  Nc4 {[%clk 0:00:53]} 31. Rd4 {[%clk 0:00:11]}  Rea8 {[%clk 0:00:50]} 32. Rb1 {[%clk 0:00:10]}  Rc8 {[%clk 0:00:37]} 33. Rb4 {[%clk 0:00:09]}  Bc6 {[%clk 0:00:34]} 34. Ng4 {[%clk 0:00:07]}  Rxa4 {[%clk 0:00:25]} 35. Rxa4 {[%clk 0:00:07]}  Bxa4 {[%clk 0:00:25]} 36. Ne3 {[%clk 0:00:06]}  Bb5 {[%clk 0:00:24]} 37. Nc2 {[%clk 0:00:05]}  Nd6 {[%clk 0:00:23]} 38. Rd2 {[%clk 0:00:05]}  Rc3 {[%clk 0:00:14]} 39. Nd4 {[%clk 0:00:04]}  g6 {[%clk 0:00:14]} 40. h5 {[%clk 0:00:05]}  gxh5 {[%clk 0:00:10]} 41. Bxh5 {[%clk 0:00:04]}  Ne4+ {[%clk 0:00:10]} 0-1


[Site "https://www.chess.com"]